lending/lending_fUSD_20250218
["ID","MTS","AMOUNT","RATE_DAILY","PERIOD"]
[353500350,1739889043071,-500.0,0.00019726,3]
[353500352,1739889043081,-500.0,0.00019726,3]
[353500354,1739889043091,-500.0,0.00019726,3]
[353500356,1739889043100,-463.124094,0.00019726,3]
[353500358,1739889043110,-534.24,0.00019726,3]
[353500359,1739889043119,-500.0,0.00019726,3]
[353500360,1739889043129,-500.0,0.00019726,3]
[353500361,1739889043139,-463.124094,0.00019726,3]
[353500362,1739889043149,-500.0,0.00019726,3]
[353500363,1739889043158,-500.0,0.00019726,3]
[353500364,1739889043167,-463.124094,0.00019726,3]
[353500365,1739889043177,-612.9874905,0.00019726,3]
[353500366,1739889043187,-500.0,0.00019726,3]
[353500367,1739889043196,-463.124094,0.00019726,3]
[353500368,1739889043205,-500.0,0.00019726,3]
[353500369,1739889043215,-500.0,0.00019726,3]
[353500370,1739889043227,-241.24,0.00019726,3]
[353500371,1739889043236,-463.124094,0.00019726,3]
[353500373,1739889043246,-500.0,0.00019726,3]
[353500375,1739889043255,-500.0,0.00019726,3]
[353500377,1739889043265,-500.0,0.00019726,3]
[353500378,1739889043274,-543.93145587,0.00019726,2]
[353500379,1739889043284,-281.12710478,0.00019726,3]
[353500380,1739889043293,-500.0,0.00019726,3]
[353500381,1739889043303,-155.989016,0.00019726,3]
[353500382,1739889043313,-500.0,0.00019726,3]
[353500383,1739889043323,-500.0,0.00019726,3]
[353500384,1739889043332,-155.989016,0.00019726,3]
[353500385,1739889043342,-500.0,0.00019726,3]
[353500386,1739889043351,-500.0,0.00019726,3]
[353500387,1739889043360,-500.0,0.00019726,3]
[353500388,1739889043370,-500.0,0.00019726,3]
[353500389,1739889043379,-500.0,0.00019726,3]
[353500390,1739889043388,-500.0,0.00019726,3]
[353500391,1739889043398,-500.0,0.00019726,3]
[353500392,1739889043407,-500.0,0.00019726,3]
[353500393,1739889043417,-571.2,0.00019726,3]
[353500394,1739889043426,-501.52702874,0.00019726,3]
[353500395,1739889043436,-500.0,0.00019726,3]
[353500396,1739889043445,-209.16688501,0.00019726,3]
[353500397,1739889043455,-500.0,0.00019726,3]
[353500398,1739889043464,-500.0,0.00019726,3]
[353500399,1739889043475,-500.0,0.00019726,3]
[353500400,1739889043484,-500.0,0.00019726,3]
[353500401,1739889043494,-500.0,0.00019726,3]
[353500402,1739889043503,-500.0,0.00019726,3]
[353500403,1739889043513,-500.0,0.00019726,3]
[353500404,1739889043523,-157.99011,0.00019726,3]
[353500405,1739889043534,-500.0,0.00019726,3]
[353500406,1739889043544,-500.0,0.00019726,3]
[353500407,1739889043554,-500.0,0.00019726,3]
[353500408,1739889043563,-500.0,0.00019726,3]
[353500409,1739889043574,-500.0,0.00019726,3]
[353500410,1739889043586,-500.0,0.00019726,3]
[353500411,1739889043595,-500.0,0.00019726,3]
[353500412,1739889043607,-500.0,0.00019726,3]
[353500413,1739889043616,-500.0,0.00019726,3]
[353500414,1739889043626,-500.0,0.00019726,3]
[353500415,1739889043635,-500.0,0.00019726,3]
[353500416,1739889043645,-500.0,0.00019726,3]
[353500417,1739889043655,-500.0,0.00019726,3]
[353500418,1739889043665,-500.0,0.00019726,3]
[353500419,1739889043675,-500.0,0.00019726,3]
[353500420,1739889043684,-500.0,0.00019726,3]
[353500421,1739889043695,-500.0,0.00019726,3]
[353500422,1739889043704,-500.0,0.00019726,3]
[353500423,1739889043714,-500.0,0.00019726,3]
[353500424,1739889043724,-505.17565839,0.00019726,3]
[353500425,1739889043735,-500.0,0.00019726,3]
[353500426,1739889043746,-500.0,0.00019726,3]
[353500427,1739889043755,-500.0,0.00019726,3]
[353500428,1739889043765,-500.0,0.00019726,3]
[353500429,1739889043774,-500.0,0.00019726,3]
[353500430,1739889043784,-198.24,0.00019726,3]
[353500431,1739889043793,-500.0,0.00019726,3]
[353500432,1739889043803,-500.0,0.00019726,3]
[353500433,1739889043813,-500.0,0.00019726,3]
[353500434,1739889043823,-500.0,0.00019726,3]
[353500435,1739889043833,-500.0,0.00019726,3]
[353500436,1739889043843,-500.0,0.00019726,3]
[353500437,1739889043853,-500.0,0.00019726,3]
[353500438,1739889043863,-500.0,0.00019726,3]
[353500439,1739889043872,-500.0,0.00019726,3]
[353500440,1739889043882,-500.0,0.00019726,3]
[353500441,1739889043892,-500.0,0.00019726,3]
[353500442,1739889043901,-502.25126165,0.00019726,3]
[353500443,1739889043911,-500.0,0.00019726,3]
[353500444,1739889043921,-500.0,0.00019726,3]
[353500445,1739889043931,-500.0,0.00019726,3]
[353500446,1739889043942,-500.0,0.00019726,3]
[353500447,1739889043952,-500.0,0.00019726,3]
[353500448,1739889043962,-500.0,0.00019726,3]
[353500449,1739889043972,-592.74283875,0.00019726,3]
[353500450,1739889043984,-615.16,0.00019726,3]
[353500451,1739889043994,-500.0,0.00019726,3]
[353500452,1739889044004,-500.0,0.00019726,3]
[353500453,1739889044015,-500.0,0.00019726,3]
[353500454,1739889044025,-508.33849155,0.00019726,3]
[353500455,1739889044035,-500.0,0.00019726,3]
[353500456,1739889044045,-500.0,0.00019726,3]
[353500457,1739889044055,-500.0,0.00019726,3]
[353500458,1739889044064,-505.07806367,0.00019726,3]
[353500459,1739889044073,-500.0,0.00019726,3]
[353500460,1739889044083,-500.0,0.00019726,3]
[353500461,1739889044093,-500.0,0.00019726,3]
[353500462,1739889044103,-500.0,0.00019726,3]
[353500463,1739889044112,-500.0,0.00019726,3]
[353500464,1739889044121,-500.0,0.00019726,3]
[353500465,1739889044130,-500.0,0.00019726,3]
[353500466,1739889044140,-500.0,0.00019726,3]
[353500467,1739889044150,-500.0,0.00019726,3]
[353500468,1739889044159,-500.0,0.00019726,3]
[353500469,1739889044169,-500.0,0.00019726,3]
[353500470,1739889044178,-500.0,0.00019726,3]
[353500471,1739889044188,-512.76381802,0.00019726,3]
[353500472,1739889044197,-500.0,0.00019726,3]
[353500473,1739889044207,-223.384526,0.00019774,2]
[353500474,1739889044249,-1054.0,0.000198,7]
[353500475,1739889044259,-420.69170353,0.00019806,2]
[353500476,1739889044269,-156.94,0.00019814,2]
[353500477,1739889044278,-205.0,0.0001985,2]
[353500478,1739889044288,-1000.0,0.000199,2]
[353500479,1739889044298,-152.75,0.000199,31]
[353500480,1739889044308,-152.75,0.000199,31]
[353500481,1739889044318,-152.75,0.000199,31]
[353500482,1739889044327,-152.75,0.000199,31]
[353500483,1739889044337,-152.75,0.000199,31]
[353500484,1739889044346,-152.75,0.000199,31]
[353500485,1739889044355,-152.75,0.000199,31]
[353500486,1739889044365,-500.0,0.00019904,2]
[353500487,1739889044374,-500.0,0.00019904,2]
[353500488,1739889044383,-623.34128041,0.0001995,30]
[353500489,1739889044393,-200.0,0.00019967,2]
[353500490,1739889044403,-3229.75694,0.0001998,2]
[353500491,1739889044412,-900.0,0.0002,10]
[353500492,1739889044421,-2110.0,0.0002,2]
[353500493,1739889044430,-10000.0,0.0002,2]
[353500494,1739889044440,-168.171043,0.0002,2]
[353500495,1739889044449,-5007.70876938,0.0002,4]
[353500496,1739889044459,-2500.0,0.00020057,2]
[353500497,1739889044468,-221.0,0.00020067,2]
[353500498,1739889044478,-55555.0,0.00020072,2]
[353500499,1739889044488,-5711.7133,0.00020073,2]
[353500500,1739889044498,-5000.0,0.00020076,2]
[353500501,1739889044507,-2000.0,0.00020077,2]
[353500502,1739889044516,-1180.95189851,0.00020078,2]
[353500503,1739889044527,-150.0,0.00020092,2]
[353500504,1739889044540,-838.0783178,0.00020096,2]
[353500505,1739889044550,-302.31820361,0.00020099,2]
[353500506,1739889044559,-150.0,0.000201,2]
[353500507,1739889044570,-159.0,0.000201,2]
[353500508,1739889044579,-332.53,0.000201,7]
[353500509,1739889044589,-2069.19,0.00020107,2]
[353500510,1739889044598,-932.57977943,0.00020117,10]
[353500511,1739889044608,-500.0,0.00020119,3]
[353500512,1739889044618,-501.50304731,0.00020119,3]
[353500513,1739889044628,-500.0,0.00020119,3]
[353500514,1739889044638,-500.0,0.00020119,3]
[353500515,1739889044648,-501.85009571,0.00020119,3]
[353500516,1739889044657,-505.45921134,0.00020119,3]
[353500517,1739889044667,-500.0,0.00020119,3]
[353500518,1739889044676,-500.0,0.00020119,3]
[353500519,1739889044686,-500.0,0.00020119,3]
[353500520,1739889044696,-500.0,0.00020119,3]
[353500521,1739889044705,-618.15,0.00020143,3]
[353500522,1739889044714,-500.0,0.00020143,3]
[353500523,1739889044723,-500.0,0.00020143,3]
[353500524,1739889044733,-500.0,0.00020143,3]
[353500525,1739889044743,-500.0,0.00020143,3]
[353500526,1739889044753,-556.09,0.00020143,3]
[353500527,1739889044762,-500.0,0.00020143,3]
[353500528,1739889044771,-500.0,0.00020143,3]
[353500529,1739889044780,-500.0,0.00020143,3]
[353500530,1739889044790,-500.0,0.00020143,3]
[353500531,1739889044800,-500.0,0.00020143,3]
[353500532,1739889044810,-500.0,0.00020143,3]
[353500533,1739889044819,-500.0,0.00020143,3]
[353500534,1739889044829,-595.56,0.00020143,3]
[353500535,1739889044838,-620.77,0.00020143,3]
[353500536,1739889044848,-500.0,0.00020143,3]
[353500537,1739889044858,-500.0,0.00020143,3]
[353500538,1739889044868,-500.0,0.00020143,3]
[353500539,1739889044877,-560.7,0.00020143,3]
[353500540,1739889044886,-508.21431392,0.00020143,3]
[353500541,1739889044896,-500.0,0.00020143,3]
[353500542,1739889044905,-500.0,0.00020143,3]
[353500543,1739889044915,-500.0,0.00020143,3]
[353500544,1739889044924,-500.0,0.00020143,3]
[353500545,1739889044934,-500.0,0.00020143,3]
[353500546,1739889044943,-500.0,0.00020143,3]
[353500547,1739889044952,-500.0,0.00020143,3]
[353500548,1739889044962,-565.35,0.00020143,3]
[353500549,1739889044971,-500.0,0.00020143,3]
[353500550,1739889044983,-500.0,0.00020143,3]
[353500551,1739889044992,-500.0,0.00020143,2]
[353500552,1739889045001,-500.0,0.00020143,3]
[353500553,1739889045011,-500.0,0.00020143,3]
[353500554,1739889045020,-500.0,0.00020143,3]
[353500555,1739889045029,-500.0,0.00020143,3]
[353500556,1739889045039,-383.42787137,0.00020143,3]
[353500557,1739889045048,-500.0,0.00020143,3]
[353500558,1739889045057,-500.0,0.00020143,3]
[353500559,1739889045066,-500.0,0.00020143,3]
[353500560,1739889045076,-500.0,0.00020143,3]
[353500561,1739889045085,-500.0,0.00020143,3]
[353500562,1739889045095,-500.0,0.00020143,3]
[353500563,1739889045104,-500.0,0.00020143,3]
[353500564,1739889045114,-500.0,0.00020143,3]
[353500565,1739889045123,-500.0,0.00020143,3]
[353500566,1739889045133,-500.0,0.00020143,3]
[353500567,1739889045142,-500.0,0.00020143,3]
[353500568,1739889045152,-500.0,0.00020143,3]
[353500569,1739889045162,-500.0,0.00020143,3]
[353500570,1739889045171,-500.0,0.00020143,3]
[353500571,1739889045181,-500.0,0.00020143,3]
[353500572,1739889045191,-500.0,0.00020143,3]
[353500573,1739889045200,-500.0,0.00020143,3]
[353500574,1739889045210,-500.75617266,0.00020143,3]
[353500575,1739889045219,-500.0,0.00020143,3]
[353500576,1739889045230,-500.0,0.00020143,3]
[353500577,1739889045239,-500.0,0.00020143,3]
[353500578,1739889045249,-500.0,0.00020143,3]
[353500579,1739889045258,-154.58,0.00020143,2]
[353500580,1739889045267,-150.0,0.00020154,5]
[353500581,1739889045278,-150.0,0.00020154,5]
[353500582,1739889045287,-208.46,0.00020157,3]
[353500583,1739889045297,-323.12,0.00020157,3]
[353500584,1739889045307,-429.94,0.00020157,3]
[353500585,1739889045316,-647.58,0.00020157,3]
[353500586,1739889045325,-500.0,0.00020157,3]
[353500587,1739889045334,-572.6,0.00020157,3]
[353500588,1739889045344,-500.0,0.00020157,3]
[353500589,1739889045353,-500.0,0.00020157,3]
[353500590,1739889045363,-500.0,0.00020157,3]
[353500591,1739889045372,-182.62,0.00020157,3]
[353500592,1739889045381,-557.90550687,0.00020157,3]
[353500593,1739889045391,-500.0,0.00020157,3]
[353500594,1739889045400,-325.86,0.00020157,3]
[353500595,1739889045410,-500.0,0.00020157,3]
[353500596,1739889045419,-500.0,0.00020157,3]
[353500597,1739889045429,-500.0,0.00020157,3]
[353500599,1739889045438,-500.0,0.00020157,3]
[353500600,1739889045447,-645.62,0.00020157,3]
[353500602,1739889045457,-500.0,0.00020157,2]
[353500603,1739889045467,-365.66,0.00020157,2]
[353500604,1739889045478,-500.0,0.00020157,3]
[353500605,1739889045487,-500.0,0.00020157,3]
[353500606,1739889045497,-500.0,0.00020157,3]
[353500607,1739889045507,-500.0,0.00020157,3]
[353500608,1739889045517,-500.0,0.00020157,3]
[353500609,1739889045528,-500.0,0.00020157,3]
[353500610,1739889045538,-500.0,0.00020157,3]
[353500611,1739889045548,-500.0,0.00020157,3]
[353500612,1739889045558,-500.0,0.00020157,3]
[353500613,1739889045567,-500.0,0.00020157,3]
[353500614,1739889045578,-366.7,0.00020157,3]
[353500615,1739889045588,-500.0,0.00020157,3]
[353500616,1739889045597,-500.0,0.00020157,3]
[353500617,1739889045607,-500.0,0.00020157,3]
[353500618,1739889045618,-500.0,0.00020157,3]
[353500619,1739889045626,-500.0,0.00020157,3]
[353500620,1739889045635,-500.0,0.00020157,3]
[353500621,1739889045645,-500.0,0.00020157,3]
[353500622,1739889045655,-500.0,0.00020157,3]
[353500623,1739889045664,-514.827,0.00020157,3]
[353500624,1739889045674,-500.0,0.00020157,3]
[353500625,1739889045685,-500.0,0.00020157,3]
[353500626,1739889045695,-375.68884434,0.00020157,3]
[353500627,1739889045704,-626.66,0.00020157,3]
[353500628,1739889045714,-500.0,0.00020157,3]
[353500629,1739889045725,-500.0,0.00020157,3]
[353500630,1739889045736,-500.0,0.00020157,3]
[353500631,1739889045746,-475.62,0.00020157,3]
[353500632,1739889045756,-500.0,0.00020157,3]
[353500633,1739889045766,-1500.0,0.00020161,5]
[353500634,1739889045776,-500.0,0.00020162,3]
[353500635,1739889045786,-500.0,0.00020162,3]
[353500636,1739889045796,-500.0,0.00020162,3]
[353500637,1739889045806,-500.0,0.00020162,3]
[353500638,1739889045815,-634.46,0.00020162,3]
[353500639,1739889045825,-500.0,0.00020162,3]
[353500640,1739889045834,-500.0,0.00020162,3]
[353500641,1739889045843,-500.0,0.00020162,3]
[353500642,1739889045853,-500.0,0.00020162,3]
[353500643,1739889045862,-500.0,0.00020162,3]
[353500644,1739889045872,-500.0,0.00020162,3]
[353500645,1739889045883,-500.0,0.00020162,3]
[353500646,1739889045894,-497.84,0.00020166,3]
[353500647,1739889045904,-218.88,0.00020166,3]
[353500648,1739889045915,-166.53,0.00020166,3]
[353500649,1739889045924,-500.0,0.00020166,3]
[353500650,1739889045935,-500.0,0.00020166,3]
[353500651,1739889045945,-500.0,0.00020166,3]
[353500652,1739889045956,-500.0,0.00020166,3]
[353500653,1739889045966,-500.0,0.00020166,3]
[353500654,1739889045979,-500.0,0.00020166,3]
[353500656,1739889045990,-500.0,0.00020166,3]
[353500658,1739889045999,-500.0,0.00020166,3]
[353500660,1739889046010,-500.0,0.00020166,3]
[353500662,1739889046019,-500.0,0.00020166,3]
[353500664,1739889046028,-500.0,0.00020166,3]
[353500666,1739889046038,-377.372463,0.00020166,3]
[353500668,1739889046048,-500.0,0.00020166,3]
[353500670,1739889046058,-500.0,0.00020166,3]
[353500672,1739889046068,-502.37589291,0.00020166,3]
[353500675,1739889046078,-500.0,0.00020166,3]
[353500678,1739889046088,-500.0,0.00020166,3]
[353500680,1739889046098,-634.46,0.00020166,3]
[353500682,1739889046107,-500.0,0.00020166,3]
[353500684,1739889046117,-163.482925,0.00020166,3]
[353500686,1739889046126,-500.0,0.00020166,3]
[353500689,1739889046137,-500.0,0.00020166,3]
[353500690,1739889046146,-500.0,0.00020166,3]
[353500693,1739889046156,-500.0,0.00020166,3]
[353500694,1739889046166,-500.0,0.00020166,3]
[353500696,1739889046177,-500.0,0.00020166,3]
[353500699,1739889046187,-500.0,0.00020166,3]
[353500700,1739889046196,-500.0,0.00020166,3]
[353500703,1739889046206,-500.0,0.00020166,3]
[353500704,1739889046216,-500.0,0.00020166,3]
[353500706,1739889046229,-164.319108,0.00020166,3]
[353500709,1739889046239,-500.0,0.00020166,3]
[353500711,1739889046249,-500.0,0.00020166,3]
[353500713,1739889046260,-500.0,0.00020166,3]
[353500715,1739889046270,-500.0,0.00020166,3]
[353500717,1739889046280,-500.0,0.00020166,3]
[353500719,1739889046290,-500.0,0.00020166,3]
[353500721,1739889046300,-500.0,0.00020166,3]
[353500722,1739889046309,-500.0,0.00020166,3]
[353500725,1739889046319,-500.0,0.00020166,3]
[353500727,1739889046330,-500.0,0.00020166,3]
[353500729,1739889046340,-500.0,0.00020166,3]
[353500731,1739889046350,-500.0,0.00020166,3]
[353500733,1739889046361,-500.0,0.00020166,3]
[353500735,1739889046371,-500.0,0.00020166,3]
[353500737,1739889046380,-500.0,0.00020166,3]
[353500739,1739889046390,-500.0,0.00020166,3]
[353500741,1739889046399,-511.66,0.00020167,3]
[353500743,1739889046410,-520.32,0.00020167,3]
[353500745,1739889046420,-514.68,0.00020167,3]
[353500747,1739889046430,-598.7010928,0.00020167,2]
[353500749,1739889046440,-876.5227982,0.00020168,2]
[353500751,1739889046449,-780.088769,0.00020168,2]
[353500753,1739889046459,-683.6547398,0.00020168,2]
[353500755,1739889046469,-587.2207106,0.00020168,2]
[353500757,1739889046481,-490.7866814,0.00020168,2]
[353500759,1739889046491,-394.3526523,0.00020168,2]
[353500761,1739889046500,-736.2875655,0.00020168,2]
[353500763,1739889046510,-655.2820551,0.00020168,2]
[353500765,1739889046520,-574.2765448,0.00020168,2]
[353500767,1739889046530,-493.2710345,0.00020168,2]
[353500769,1739889046543,-412.2655242,0.00020168,2]
[353500771,1739889046552,-331.2600138,0.00020168,2]
[353500773,1739889046562,-205.0,0.0002017,2]
[353500775,1739889046572,-205.0,0.0002017,2]
[353500777,1739889046583,-205.0,0.0002017,2]
[353500779,1739889046593,-202.0,0.0002017,2]
[353500781,1739889046603,-202.0,0.0002017,2]
[353500783,1739889046614,-200.0,0.0002017,2]
[353500785,1739889046624,-205.0,0.0002017,2]
[353500788,1739889046634,-208.0,0.0002017,2]
[353500790,1739889046643,-400.0,0.0002017,2]
[353500791,1739889046653,-400.0,0.0002017,2]
[353500794,1739889046663,-400.0,0.0002017,2]
[353500796,1739889046672,-685.39737105,0.0002017,2]
[353500798,1739889046681,-202.0,0.0002017,2]
[353500800,1739889046691,-205.0,0.0002017,2]
[353500802,1739889046701,-208.0,0.0002017,2]
[353500804,1739889046710,-200.0,0.0002017,2]
[353500806,1739889046720,-202.0,0.0002017,2]
[353500808,1739889046731,-205.0,0.0002017,2]
[353500810,1739889046741,-208.0,0.0002017,2]
[353500812,1739889046750,-518.71126322,0.00020172,3]
[353500814,1739889046759,-502.89410783,0.00020172,3]
[353500816,1739889046769,-273.90881028,0.00020172,3]
[353500818,1739889046779,-500.86848529,0.00020172,3]
[353500820,1739889046789,-503.83110792,0.00020172,3]
[353500822,1739889046798,-501.34992669,0.00020172,3]
[353500823,1739889046808,-500.0,0.00020172,3]
[353500825,1739889046818,-500.0,0.00020172,3]
[353500827,1739889046833,-502.75820427,0.00020172,3]
[353500829,1739889046846,-500.91254581,0.00020172,3]
[353500831,1739889046855,-500.0,0.00020172,3]
[353500832,1739889046865,-502.09801966,0.00020172,3]
[353500833,1739889046875,-500.0,0.00020172,3]
[353500834,1739889046884,-500.0,0.00020172,3]
[353500835,1739889046894,-395.21893044,0.00020172,3]
[353500836,1739889046904,-500.0,0.00020172,3]
[353500837,1739889046913,-184.04142791,0.00020172,3]
[353500838,1739889046923,-500.0,0.00020172,3]
[353500839,1739889046933,-482.157087,0.00020172,3]
[353500840,1739889046943,-500.0,0.00020172,3]
[353500841,1739889046953,-500.0,0.00020172,3]
[353500842,1739889046962,-504.015802,0.00020172,3]
[353500843,1739889046973,-502.73131951,0.00020172,3]
[353500844,1739889046987,-502.60469769,0.00020172,3]
[353500845,1739889046996,-502.69161918,0.00020172,3]
[353500846,1739889047007,-504.12750126,0.00020172,3]
[353500847,1739889047016,-500.0,0.00020172,3]
[353500848,1739889047026,-500.0,0.00020172,3]
[353500849,1739889047036,-502.46944688,0.00020172,3]
[353500850,1739889047046,-500.0,0.00020172,3]
[353500851,1739889047055,-500.0,0.00020172,3]
[353500852,1739889047066,-500.0,0.00020172,3]
[353500853,1739889047075,-261.29575614,0.00020172,3]
[353500854,1739889047085,-500.0,0.00020172,3]
[353500855,1739889047095,-509.67459532,0.00020172,3]
[353500856,1739889047105,-500.0,0.00020172,3]
[353500857,1739889047114,-500.0,0.00020172,3]
[353500858,1739889047124,-500.0,0.00020172,3]
[353500859,1739889047133,-500.0,0.00020172,3]
[353500860,1739889047143,-500.0,0.00020172,3]
[353500861,1739889047153,-500.0,0.00020172,3]
[353500862,1739889047163,-501.59648961,0.00020172,3]
[353500863,1739889047173,-500.0,0.00020172,3]
[353500864,1739889047183,-500.0,0.00020172,3]
[353500865,1739889047193,-504.35166202,0.00020172,3]
[353500866,1739889047202,-506.04588211,0.00020172,3]
[353500867,1739889047213,-500.0,0.00020172,3]
[353500868,1739889047222,-501.15908818,0.00020172,3]
[353500869,1739889047235,-500.0,0.00020172,3]
[353500870,1739889047245,-500.0,0.00020172,3]
[353500871,1739889047255,-500.00361415,0.00020172,3]
[353500872,1739889047264,-502.04198045,0.00020172,3]
[353500873,1739889047275,-503.30977836,0.00020172,3]
[353500874,1739889047285,-534.49375898,0.00020172,3]
[353500875,1739889047295,-500.0,0.00020172,3]
[353500876,1739889047304,-500.0,0.00020172,3]
[353500877,1739889047314,-500.0,0.00020172,3]
[353500878,1739889047324,-500.0,0.00020172,3]
[353500879,1739889047333,-500.0,0.00020172,3]
[353500880,1739889047343,-504.08158652,0.00020172,3]
[353500881,1739889047353,-367.1457948,0.00020172,3]
[353500882,1739889047363,-500.0,0.00020172,3]
[353500883,1739889047374,-500.0,0.00020172,3]
[353500884,1739889047384,-500.0,0.00020172,3]
[353500885,1739889047394,-502.38320222,0.00020172,3]
[353500886,1739889047404,-484.39825107,0.00020172,3]
[353500887,1739889047414,-503.24132153,0.00020172,3]
[353500888,1739889047423,-498.97114574,0.00020172,3]
[353500889,1739889047433,-500.0,0.00020172,3]
[353500890,1739889047442,-500.0,0.00020172,3]
[353500891,1739889047452,-500.0,0.00020172,3]
[353500892,1739889047462,-500.0,0.00020172,3]
[353500893,1739889047472,-500.0,0.00020172,3]
[353500894,1739889047483,-500.0,0.00020172,3]
[353500895,1739889047493,-500.0,0.00020172,3]
[353500896,1739889047503,-500.0,0.00020172,3]
[353500897,1739889047513,-500.0,0.00020172,3]
[353500898,1739889047523,-500.0,0.00020172,3]
[353500899,1739889047533,-501.86415804,0.00020172,3]
[353500900,1739889047544,-500.0,0.00020172,3]
[353500901,1739889047555,-500.0,0.00020172,3]
[353500902,1739889047565,-762.5,0.00020172,3]
[353500903,1739889047575,-500.0,0.00020172,3]
[353500904,1739889047585,-455.8827314,0.00020172,3]
[353500905,1739889047594,-466.67502665,0.00020172,3]
[353500906,1739889047603,-500.0,0.00020172,3]
[353500907,1739889047613,-500.0,0.00020172,3]
[353500908,1739889047624,-500.0,0.00020172,3]
[353500909,1739889047634,-500.0,0.00020172,3]
[353500910,1739889047643,-500.0,0.00020172,3]
[353500911,1739889047654,-500.0,0.00020172,3]
[353500912,1739889047664,-508.38638513,0.00020172,3]
[353500913,1739889047674,-500.0,0.00020172,3]
[353500914,1739889047684,-500.0,0.00020172,3]
[353500915,1739889047693,-1000.0,0.00020172,3]
[353500916,1739889047704,-500.0,0.00020172,3]
[353500917,1739889047713,-505.91432047,0.00020172,3]
[353500918,1739889047722,-500.0,0.00020172,3]
[353500919,1739889047734,-500.0,0.00020172,3]
[353500920,1739889047744,-500.0,0.00020172,3]
[353500921,1739889047755,-500.0,0.00020172,3]
[353500922,1739889047766,-504.18118893,0.00020172,3]
[353500923,1739889047776,-500.0,0.00020172,3]
[353500924,1739889047786,-503.05466665,0.00020172,3]
[353500925,1739889047796,-502.90229219,0.00020172,3]
[353500926,1739889047805,-500.0,0.00020172,3]
[353500927,1739889047816,-503.56304194,0.00020172,3]
[353500928,1739889047826,-500.0,0.00020172,3]
[353500929,1739889047835,-500.0,0.00020172,3]
[353500930,1739889047845,-500.0,0.00020172,3]
[353500931,1739889047854,-549.10467358,0.00020172,3]
[353500932,1739889047864,-500.0,0.00020172,3]
[353500933,1739889047874,-500.0,0.00020172,3]
[353500934,1739889047884,-500.0,0.00020172,3]
[353500935,1739889047893,-500.0,0.00020172,3]
[353500936,1739889047903,-512.99042377,0.00020172,3]
[353500937,1739889047913,-502.79538116,0.00020172,3]
[353500938,1739889047922,-500.0,0.00020172,3]
[353500939,1739889047933,-500.0,0.00020172,3]
[353500940,1739889047949,-504.43705465,0.00020172,3]
[353500941,1739889047960,-502.45192096,0.00020172,3]
[353500942,1739889047970,-500.0,0.00020172,3]
[353500943,1739889047982,-459.79427003,0.00020172,3]
[353500944,1739889047993,-500.20726059,0.00020173,2]
[353500945,1739889048003,-150.0,0.00020173,2]
[353500946,1739889048018,-150.0,0.00020173,2]
[353500947,1739889048028,-150.0,0.00020173,2]
[353500948,1739889048038,-150.0,0.00020173,2]